[Event "28th North American Open"]
[Site "Las Vegas"]
[Date "2018.12.29"]
[Round "8"]
[White "Vivekananthan, Anish"]
[Black "Zhang, Chao"]
[Result "0-1"]
[ECO "C45"]
[WhiteElo "2294"]
[BlackElo "2225"]
[PlyCount "104"]
[EventDate "2018.12.??"]
[EventType "swiss"]
[EventRounds "9"]
[EventCountry "USA"]
[TimeControl "6600+10"]
[WhiteClock "0:03:24"]
[BlackClock "0:01:23"]

1. e4 {[%emt 0:19:40]} e5 {[%emt 0:23:20]} 2. Nf3 {[%emt 0:00:00]} Nc6 {
[%emt 0:00:00]} 3. Nc3 {[%emt 0:00:00]} Nf6 {[%emt 0:00:20]} 4. d4 {[%emt 0:00:
00]} exd4 {[%emt 0:00:00]} 5. Nxd4 {[%emt 0:00:00]} Bb4 {[%emt 0:00:23]} 6.
Nxc6 {[%emt 0:00:00]} bxc6 {[%emt 0:00:00]} 7. Bd3 {[%emt 0:00:00]} d5 {
[%emt 0:00:00]} 8. exd5 {[%emt 0:00:00]} O-O {[%emt 0:00:00]} 9. O-O {[%emt 0:
00:00]} cxd5 {[%emt 0:00:00]} 10. h3 {[%emt 0:00:00]} c6 {[%emt 0:01:34]} 11.
Qf3 {[%emt 0:00:00]} Rb8 {[%emt 0:02:46]} 12. Bf4 {[%emt 0:00:14]} Bd6 {
[%emt 0:00:00]} 13. b3 {[%emt 0:00:40]} Rb4 {[%emt 0:03:33]} 14. Bxd6 {[%emt 0:
00:00]} Qxd6 {[%emt 0:00:00]} 15. a3 {[%emt 0:00:54]} Rb8 {[%emt 0:03:02]} 16.
Qg3 {[%emt 0:01:26]} Qxg3 {[%emt 0:08:01]} 17. fxg3 {[%emt 0:00:00]} Be6 {
[%emt 0:00:00]} 18. Na4 {[%emt 0:02:47]} Nd7 {[%emt 0:05:02]} 19. b4 {[%emt 0:
01:20]} Rfc8 {[%emt 0:09:36]} 20. Rab1 {[%emt 0:05:10]} g6 {[%emt 0:00:42]} 21.
Rfc1 {[%emt 0:21:48]} c5 {[%emt 0:14:43]} 22. Nxc5 {[%emt 0:12:13]} Nxc5 {
[%emt 0:00:16]} 23. bxc5 {[%emt 0:00:00]} Rxb1 {[%emt 0:00:00]} 24. Rxb1 {
[%emt 0:00:00]} Rxc5 {[%emt 0:00:00]} 25. Rb5 {[%emt 0:17:06]} Rxb5 {[%emt 0:
06:08]} 26. Bxb5 {[%emt 0:00:00]} d4 {[%emt 0:00:27]} 27. Kf2 {[%emt 0:00:33]}
Kg7 {[%emt 0:00:20]} 28. g4 {[%emt 0:04:03]} Kf6 {[%emt 0:00:12]} 29. Bd3 {
[%emt 0:00:18]} h6 {[%emt 0:00:08]} 30. Kf3 {[%emt 0:05:37]} Ke5 {[%emt 0:00:
16]} 31. Kf2 {[%emt 0:00:23]} g5 {[%emt 0:02:33]} 32. g3 {[%emt 0:01:54]} Bd5 {
[%emt 0:04:19]} 33. Bf1 {[%emt 0:02:42]} Be4 {[%emt 0:05:21]} 34. Bd3 {[%emt 0:
00:00]} Bc6 {[%emt 0:09:09]} 35. Bf1 {[%emt 0:00:00]} Kd6 {[%emt 0:00:00]} 36.
Ke1 {[%emt 0:00:00]} Kc5 {[%emt 0:00:08]} 37. Kd2 {[%emt 0:00:00]} Bd5 {
[%emt 0:03:38]} 38. Kc1 {[%emt 0:00:57]} Bc4 {[%emt 0:05:29]} 39. Bd3 {[%emt 0:
00:21]} Bb5 {[%emt 0:01:01]} 40. Kd2 {[%emt 0:00:33]} Bc6 {[%emt 0:00:03]} 41.
Bf1 {[%emt 0:00:00]} Bf3 {[%emt 0:00:13]} 42. Ke1 {[%emt 0:05:27]} Be4 {
[%emt 0:03:08]} 43. Kd2 {[%emt 0:00:09]} Kd5 {[%emt 0:00:00]} 44. Kd1 {[%emt 0:
00:29]} Ke5 {[%emt 0:00:00]} 45. Kd2 {[%emt 0:00:01]} Bf3 {[%emt 0:00:00]} 46.
Kd3 {[%emt 0:01:36]} h5 {[%emt 0:00:19]} 47. gxh5 {[%emt 0:00:07]} Bxh5 {
[%emt 0:00:00]} 48. Kd2 {[%emt 0:08:13]} f5 {[%emt 0:00:00]} 49. Ke1 {[%emt 0:
00:00]} f4 {[%emt 0:00:15]} 50. g4 {[%emt 0:00:00]} Bg6 {[%emt 0:00:33]} 51.
Bd3 {[%emt 0:00:00]} Bxd3 {[%emt 0:00:49]} 52. cxd3 {[%emt 0:00:00]} f3 {
[%emt 0:00:00]} 0-1

[Event "28th North American Open"]
[Site "Las Vegas"]
[Date "2018.12.29"]
[Round "8"]
[White "Calugar, Arthur"]
[Black "Peng, Shunkai"]
[Result "1-0"]
[ECO "B90"]
[WhiteElo "2208"]
[BlackElo "2285"]
[PlyCount "87"]
[EventDate "2018.12.??"]
[EventType "swiss"]
[EventRounds "9"]
[EventCountry "USA"]
[TimeControl "6600+10"]
[WhiteClock "0:13:21"]
[BlackClock "0:04:40"]

1. e4 {[%emt 0:19:40]} c5 {[%emt 0:21:42]} 2. Nf3 {[%emt 0:00:00]} d6 {[%emt 0:
00:24]} 3. d4 {[%emt 0:00:00]} cxd4 {[%emt 0:00:00]} 4. Nxd4 {[%emt 0:00:00]}
Nf6 {[%emt 0:00:03]} 5. Nc3 {[%emt 0:00:00]} a6 {[%emt 0:00:06]} 6. f3 {
[%emt 0:00:00]} e5 {[%emt 0:00:44]} 7. Nb3 {[%emt 0:00:00]} Be6 {[%emt 0:00:00]
} 8. Be3 {[%emt 0:00:00]} h5 {[%emt 0:00:00]} 9. Qd2 {[%emt 0:00:00]} Nbd7 {
[%emt 0:00:23]} 10. Nd5 {[%emt 0:00:56]} Bxd5 {[%emt 0:07:19]} 11. exd5 {
[%emt 0:00:00]} g6 {[%emt 0:00:00]} 12. Be2 {[%emt 0:00:00]} Bg7 {[%emt 0:00:
08]} 13. O-O {[%emt 0:01:49]} O-O {[%emt 0:01:08]} 14. c4 {[%emt 0:00:00]} a5 {
[%emt 0:03:16]} 15. Rac1 {[%emt 0:01:46]} a4 {[%emt 0:05:28]} 16. Na1 {[%emt 0:
00:00]} Qa5 {[%emt 0:00:30]} 17. Nc2 {[%emt 0:05:26]} Qxd2 {[%emt 0:11:45]} 18.
Bxd2 {[%emt 0:00:00]} Rfc8 {[%emt 0:06:16]} 19. Na3 {[%emt 0:02:59]} e4 {
[%emt 0:07:22]} 20. Nb5 {[%emt 0:05:31]} exf3 {[%emt 0:03:48]} 21. gxf3 {
[%emt 0:27:01]} Ne8 {[%emt 0:07:17]} 22. Rc2 {[%emt 0:04:53]} Ra6 {[%emt 0:14:
02]} 23. Be3 {[%emt 0:07:37]} Bf6 {[%emt 0:19:14]} 24. Rfc1 {[%emt 0:02:27]}
Bd8 {[%emt 0:00:00]} 25. Kg2 {[%emt 0:01:05]} Nc5 {[%emt 0:00:53]} 26. Rb1 {
[%emt 0:04:50]} Ba5 {[%emt 0:00:35]} 27. Bf4 {[%emt 0:03:28]} Kf8 {[%emt 0:01:
02]} 28. Kg3 {[%emt 0:00:00]} Rd8 {[%emt 0:00:00]} 29. Bf1 {[%emt 0:00:00]} Bb4
{[%emt 0:00:00]} 30. Re2 {[%emt 0:01:37]} Kg7 {[%emt 0:00:02]} 31. h4 {[%emt 0:
00:53]} Raa8 {[%emt 0:00:00]} 32. Bh3 {[%emt 0:05:25]} Nd3 {[%emt 0:00:00]} 33.
Re7 {[%emt 0:00:26]} Bc5 {[%emt 0:00:00]} 34. Bg5 {[%emt 0:00:52]} Nf6 {
[%emt 0:00:00]} 35. Nc7 {[%emt 0:00:00]} Ng8 {[%emt 0:00:00]} 36. Ne6+ {
[%emt 0:00:47]} Kh8 {[%emt 0:00:00]} 37. Nxd8 {[%emt 0:00:19]} Nxe7 {[%emt 0:
00:00]} 38. Bxe7 {[%emt 0:00:00]} Kg8 {[%emt 0:00:00]} 39. Nxb7 {[%emt 0:00:08]
} Bf2+ {[%emt 0:00:00]} 40. Kg2 {[%emt 0:00:00]} Re8 {[%emt 0:00:00]} 41. Bxd6
{[%emt 0:02:47]} Bxh4 {[%emt 0:00:00]} 42. Kf1 {[%emt 0:01:32]} Re3 {[%emt 0:
00:00]} 43. Bg2 {[%emt 0:00:00]} g5 {[%emt 0:00:00]} 44. c5 {[%emt 0:00:00]}
1-0

[Event "28th North American Open"]
[Site "Las Vegas"]
[Date "2018.12.29"]
[Round "8"]
[White "Kollar, Romain"]
[Black "Asaria, Danial"]
[Result "0-1"]
[ECO "B90"]
[WhiteElo "2180"]
[BlackElo "2328"]
[PlyCount "64"]
[EventDate "2018.12.??"]
[EventType "swiss"]
[EventRounds "9"]
[EventCountry "USA"]
[TimeControl "6600+10"]
[WhiteClock "0:13:17"]
[BlackClock "0:03:49"]

1. e4 {[%emt 0:19:40]} c5 {[%emt 0:20:41]} 2. Nf3 {[%emt 0:00:00]} d6 {[%emt 0:
00:00]} 3. d4 {[%emt 0:00:00]} cxd4 {[%emt 0:00:00]} 4. Nxd4 {[%emt 0:00:00]}
Nf6 {[%emt 0:00:00]} 5. Nc3 {[%emt 0:00:00]} a6 {[%emt 0:00:00]} 6. f3 {
[%emt 0:00:00]} e5 {[%emt 0:00:00]} 7. Nb3 {[%emt 0:00:00]} Be6 {[%emt 0:00:00]
} 8. Be3 {[%emt 0:00:00]} h5 {[%emt 0:00:00]} 9. Qd2 {[%emt 0:00:00]} Nbd7 {
[%emt 0:00:00]} 10. O-O-O {[%emt 0:00:00]} Rc8 {[%emt 0:00:00]} 11. Kb1 {
[%emt 0:00:00]} b5 {[%emt 0:00:00]} 12. Nd5 {[%emt 0:02:23]} Bxd5 {[%emt 0:00:
00]} 13. exd5 {[%emt 0:00:00]} Nb6 {[%emt 0:00:00]} 14. Bxb6 {[%emt 0:00:26]}
Qxb6 {[%emt 0:00:00]} 15. Bd3 {[%emt 0:11:13]} g6 {[%emt 0:00:00]} 16. Qg5 {
[%emt 0:00:22]} Be7 {[%emt 0:09:50]} 17. Qd2 {[%emt 0:11:17]} Kf8 {[%emt 0:08:
51]} 18. Rhe1 {[%emt 0:02:24]} Kg7 {[%emt 0:06:50]} 19. h3 {[%emt 0:14:34]} Qc7
{[%emt 0:07:40]} 20. Rc1 {[%emt 0:03:13]} Nxd5 {[%emt 0:10:27]} 21. c4 {
[%emt 0:01:55]} Nf4 {[%emt 0:07:48]} 22. cxb5 {[%emt 0:06:57]} Qb6 {[%emt 0:00:
08]} 23. bxa6 {[%emt 0:00:18]} Nxd3 {[%emt 0:01:32]} 24. Qxd3 {[%emt 0:00:00]}
Ra8 {[%emt 0:04:03]} 25. Nd2 {[%emt 0:06:37]} Rhb8 {[%emt 0:08:30]} 26. Rc2 {
[%emt 0:01:16]} Rxa6 {[%emt 0:07:53]} 27. Nc4 {[%emt 0:00:41]} Qa7 {[%emt 0:01:
57]} 28. b3 {[%emt 0:01:03]} Bf6 {[%emt 0:02:32]} 29. Qe3 {[%emt 0:07:47]} Qb7
{[%emt 0:01:13]} 30. Rd1 {[%emt 0:00:26]} e4 {[%emt 0:05:51]} 31. Rcd2 {
[%emt 0:05:32]} Qb5 {[%emt 0:04:54]} 32. Nxd6 {[%emt 0:03:59]} Qe5 {[%emt 0:01:
01]} 0-1

[Event "28th North American Open"]
[Site "Las Vegas"]
[Date "2018.12.29"]
[Round "8"]
[White "Chua, Alexander"]
[Black "Zavortink, Matt"]
[Result "1-0"]
[ECO "D30"]
[WhiteElo "2291"]
[BlackElo "2160"]
[PlyCount "60"]
[EventDate "2018.12.??"]
[EventType "swiss"]
[EventRounds "9"]
[EventCountry "USA"]
[TimeControl "6600+10"]
[WhiteClock "0:41:04"]
[BlackClock "0:03:24"]

1. d4 {[%emt 0:19:40]} d5 {[%emt 0:19:55]} 2. c4 {[%emt 0:00:00]} e6 {[%emt 0:
00:00]} 3. Nf3 {[%emt 0:00:00]} Nf6 {[%emt 0:00:00]} 4. g3 {[%emt 0:00:00]}
Bb4+ {[%emt 0:00:00]} 5. Bd2 {[%emt 0:00:00]} Be7 {[%emt 0:00:00]} 6. Bg2 {
[%emt 0:00:00]} O-O {[%emt 0:00:00]} 7. O-O {[%emt 0:00:00]} Nbd7 {[%emt 0:00:
00]} 8. Qc2 {[%emt 0:00:00]} c6 {[%emt 0:00:00]} 9. Rd1 {[%emt 0:00:00]} b6 {
[%emt 0:00:19]} 10. b3 {[%emt 0:00:00]} a5 {[%emt 0:00:14]} 11. Nc3 {[%emt 0:
05:01]} Ba6 {[%emt 0:00:00]} 12. Qd3 {[%emt 0:25:53]} c5 {[%emt 0:14:11]} 13.
Nb5 {[%emt 0:01:37]} Rc8 {[%emt 0:08:07]} 14. Rac1 {[%emt 0:00:02]} cxd4 {
[%emt 0:24:48]} 15. Nfxd4 {[%emt 0:00:42]} e5 {[%emt 0:10:56]} 16. Nf5 {
[%emt 0:00:18]} Bxb5 {[%emt 0:16:33]} 17. cxb5 {[%emt 0:07:10]} Rxc1 {[%emt 0:
00:00]} 18. Bxc1 {[%emt 0:00:05]} d4 {[%emt 0:02:32]} 19. e3 {[%emt 0:02:32]}
Nc5 {[%emt 0:01:38]} 20. Qc4 {[%emt 0:00:25]} d3 {[%emt 0:04:13]} 21. Ba3 {
[%emt 0:00:10]} e4 {[%emt 0:01:02]} 22. Bxc5 {[%emt 0:04:04]} Bxc5 {[%emt 0:00:
00]} 23. Bxe4 {[%emt 0:00:00]} d2 {[%emt 0:00:59]} 24. Bf3 {[%emt 0:01:08]} Qd7
{[%emt 0:06:07]} 25. Nd4 {[%emt 0:00:08]} Bb4 {[%emt 0:00:00]} 26. Nc6 {
[%emt 0:00:13]} Qf5 {[%emt 0:01:17]} 27. Kg2 {[%emt 0:03:13]} Rc8 {[%emt 0:00:
00]} 28. Qxb4 {[%emt 0:01:14]} Rxc6 {[%emt 0:00:00]} 29. Qxd2 {[%emt 0:00:24]}
Rc8 {[%emt 0:00:00]} 30. Qd8+ {[%emt 0:00:00]} Ne8 {[%emt 0:00:00]} 1-0

[Event "28th North American Open"]
[Site "Las Vegas"]
[Date "2018.12.30"]
[Round "8"]
[White "Vidyarthi, Vyom"]
[Black "Encinas Varela, David"]
[Result "1/2-1/2"]
[ECO "A45"]
[WhiteElo "2008"]
[BlackElo "1885"]
[PlyCount "116"]
[EventDate "2018.12.??"]
[EventType "swiss"]
[EventRounds "9"]
[EventCountry "USA"]
[TimeControl "6600+10"]
[WhiteClock "0:01:00"]
[BlackClock "0:07:16"]

1. d4 {[%emt 0:19:40]} Nf6 {[%emt 0:19:51]} 2. Bf4 {[%emt 0:00:00]} g6 {
[%emt 0:00:23]} 3. Nc3 {[%emt 0:00:28]} d6 {[%emt 0:00:00]} 4. e4 {[%emt 0:00:
36]} Bg7 {[%emt 0:00:00]} 5. Nf3 {[%emt 0:00:00]} O-O {[%emt 0:00:00]} 6. Be2 {
[%emt 0:00:40]} c6 {[%emt 0:00:00]} 7. O-O {[%emt 0:03:35]} Qc7 {[%emt 0:02:00]
} 8. Qd2 {[%emt 0:05:32]} Re8 {[%emt 0:00:00]} 9. e5 {[%emt 0:05:22]} Nh5 {
[%emt 0:07:24]} 10. exd6 {[%emt 0:10:18]} exd6 {[%emt 0:00:00]} 11. Bc4 {
[%emt 0:01:12]} Nxf4 {[%emt 0:13:00]} 12. Qxf4 {[%emt 0:00:42]} b5 {[%emt 0:00:
00]} 13. Bb3 {[%emt 0:01:03]} Na6 {[%emt 0:00:00]} 14. Rfe1 {[%emt 0:12:11]}
Rf8 {[%emt 0:11:34]} 15. Ne4 {[%emt 0:06:49]} d5 {[%emt 0:03:57]} 16. Nf6+ {
[%emt 0:06:42]} Bxf6 {[%emt 0:19:44]} 17. Qxf6 {[%emt 0:00:00]} Be6 {[%emt 0:
00:00]} 18. Ne5 {[%emt 0:13:39]} Nb8 {[%emt 0:07:15]} 19. Qf4 {[%emt 0:03:02]}
Rc8 {[%emt 0:02:32]} 20. Qh6 {[%emt 0:11:30]} Nd7 {[%emt 0:00:00]} 21. Nd3 {
[%emt 0:00:00]} Re8 {[%emt 0:03:48]} 22. a4 {[%emt 0:04:45]} a6 {[%emt 0:00:06]
} 23. Re3 {[%emt 0:02:06]} Bf5 {[%emt 0:00:00]} 24. Rae1 {[%emt 0:00:26]} Rxe3
{[%emt 0:00:00]} 25. Qxe3 {[%emt 0:00:26]} Bxd3 {[%emt 0:00:00]} 26. Qxd3 {
[%emt 0:02:06]} Nf6 {[%emt 0:01:23]} 27. h3 {[%emt 0:00:00]} Ne4 {[%emt 0:04:
04]} 28. c3 {[%emt 0:00:00]} Qf4 {[%emt 0:00:00]} 29. Qe3 {[%emt 0:00:00]} Qxe3
{[%emt 0:00:01]} 30. Rxe3 {[%emt 0:00:00]} Kf8 {[%emt 0:00:00]} 31. Bc2 {
[%emt 0:00:54]} Nd6 {[%emt 0:00:00]} 32. Re1 {[%emt 0:00:42]} Re8 {[%emt 0:00:
16]} 33. Rxe8+ {[%emt 0:00:00]} Kxe8 {[%emt 0:00:00]} 34. axb5 {[%emt 0:00:00]}
axb5 {[%emt 0:01:01]} 35. Bd3 {[%emt 0:00:00]} Ke7 {[%emt 0:03:34]} 36. f3 {
[%emt 0:00:00]} Nc8 {[%emt 0:00:00]} 37. Kf2 {[%emt 0:00:00]} Nb6 {[%emt 0:00:
00]} 38. b3 {[%emt 0:00:00]} Nc8 {[%emt 0:02:27]} 39. Ke3 {[%emt 0:00:00]} Nd6
{[%emt 0:00:00]} 40. g4 {[%emt 0:00:50]} h6 {[%emt 0:00:00]} 41. h4 {[%emt 0:
00:32]} g5 {[%emt 0:00:00]} 42. hxg5 {[%emt 0:00:34]} hxg5 {[%emt 0:00:00]} 43.
Kd2 {[%emt 0:00:00]} Kd7 {[%emt 0:00:00]} 44. Kc2 {[%emt 0:00:00]} Kc7 {
[%emt 0:00:00]} 45. Kb2 {[%emt 0:00:00]} Kb6 {[%emt 0:04:38]} 46. Ka3 {[%emt 0:
00:00]} c5 {[%emt 0:00:00]} 47. dxc5+ {[%emt 0:00:00]} Kxc5 {[%emt 0:00:00]}
48. b4+ {[%emt 0:00:33]} Kc6 {[%emt 0:00:00]} 49. Kb3 {[%emt 0:00:00]} Nc4 {
[%emt 0:03:06]} 50. Kc2 {[%emt 0:00:00]} Kd6 {[%emt 0:00:00]} 51. Kd1 {[%emt 0:
00:00]} Nb2+ {[%emt 0:01:28]} 52. Ke2 {[%emt 0:00:00]} Nxd3 {[%emt 0:00:00]}
53. Kxd3 {[%emt 0:00:00]} Ke5 {[%emt 0:00:00]} 54. Ke3 {[%emt 0:00:00]} f5 {
[%emt 0:00:00]} 55. gxf5 {[%emt 0:00:00]} Kxf5 {[%emt 0:00:00]} 56. Kd3 {
[%emt 0:00:29]} Kf4 {[%emt 0:00:00]} 57. Ke2 {[%emt 0:00:00]} Kf5 {[%emt 0:00:
00]} 58. Kd3 {[%emt 0:01:16]} Kf4 {[%emt 0:00:00]} 1/2-1/2

[Event "28th North American Open"]
[Site "Las Vegas"]
[Date "2018.12.29"]
[Round "8"]
[White "Li, Eric"]
[Black "Lynch, Joshua"]
[Result "1-0"]
[ECO "D20"]
[WhiteElo "2045"]
[BlackElo "2267"]
[PlyCount "95"]
[EventDate "2018.12.??"]
[EventType "swiss"]
[EventRounds "9"]
[EventCountry "USA"]
[TimeControl "6600+10"]
[WhiteClock "0:01:19"]
[BlackClock "0:03:40"]

1. d4 {[%emt 0:19:40]} d5 {[%emt 0:19:50]} 2. c4 {[%emt 0:00:00]} dxc4 {
[%emt 0:00:00]} 3. e4 {[%emt 0:00:00]} Nf6 {[%emt 0:00:00]} 4. e5 {[%emt 0:00:
00]} Nd5 {[%emt 0:00:00]} 5. Bxc4 {[%emt 0:00:00]} Nb6 {[%emt 0:00:00]} 6. Bd3
{[%emt 0:00:00]} Nc6 {[%emt 0:01:49]} 7. Ne2 {[%emt 0:00:10]} Bg4 {[%emt 0:05:
10]} 8. f3 {[%emt 0:02:05]} Be6 {[%emt 0:13:38]} 9. Nbc3 {[%emt 0:06:39]} Bd5 {
[%emt 0:05:49]} 10. O-O {[%emt 0:07:55]} e6 {[%emt 0:00:42]} 11. b3 {[%emt 0:
11:34]} Bb4 {[%emt 0:12:42]} 12. Bb2 {[%emt 0:02:02]} Bxc3 {[%emt 0:18:49]} 13.
Bxc3 {[%emt 0:06:44]} Qe7 {[%emt 0:00:33]} 14. Rc1 {[%emt 0:05:43]} O-O-O {
[%emt 0:07:40]} 15. Qc2 {[%emt 0:06:00]} Rd7 {[%emt 0:06:31]} 16. Qb2 {[%emt 0:
08:59]} a6 {[%emt 0:03:56]} 17. a4 {[%emt 0:05:59]} Nb4 {[%emt 0:00:56]} 18.
Bb1 {[%emt 0:00:26]} Bc6 {[%emt 0:01:49]} 19. Nf4 {[%emt 0:04:21]} h5 {[%emt 0:
04:35]} 20. Nd3 {[%emt 0:04:00]} Nxd3 {[%emt 0:02:41]} 21. Bxd3 {[%emt 0:00:00]
} Nd5 {[%emt 0:01:32]} 22. Bd2 {[%emt 0:01:23]} Nb4 {[%emt 0:00:00]} 23. Bxb4 {
[%emt 0:01:02]} Qxb4 {[%emt 0:00:00]} 24. Bxa6 {[%emt 0:00:00]} Qb6 {[%emt 0:
04:47]} 25. Rxc6 {[%emt 0:00:00]} Qxc6 {[%emt 0:00:00]} 26. Bb5 {[%emt 0:00:00]
} Qd5 {[%emt 0:00:20]} 27. Bxd7+ {[%emt 0:00:00]} Qxd7 {[%emt 0:00:00]} 28. Rc1
{[%emt 0:06:23]} h4 {[%emt 0:00:13]} 29. h3 {[%emt 0:04:32]} Rd8 {[%emt 0:00:
17]} 30. Rc4 {[%emt 0:00:42]} Kb8 {[%emt 0:00:00]} 31. Qa3 {[%emt 0:01:23]} f6
{[%emt 0:00:00]} 32. Qc5 {[%emt 0:01:32]} Qf7 {[%emt 0:00:00]} 33. Rb4 {
[%emt 0:02:00]} Rd5 {[%emt 0:00:00]} 34. Qc6 {[%emt 0:00:48]} b6 {[%emt 0:00:
00]} 35. a5 {[%emt 0:00:05]} Rxa5 {[%emt 0:00:34]} 36. Rxb6+ {[%emt 0:00:00]}
cxb6 {[%emt 0:00:00]} 37. Qxb6+ {[%emt 0:00:00]} Qb7 {[%emt 0:00:00]} 38. Qxa5
{[%emt 0:00:34]} Qxb3 {[%emt 0:00:00]} 39. Qe1 {[%emt 0:00:46]} Qc4 {[%emt 0:
00:44]} 40. Qxh4 {[%emt 0:00:00]} fxe5 {[%emt 0:00:00]} 41. Qh8+ {[%emt 0:00:
00]} Kb7 {[%emt 0:00:00]} 42. Qxg7+ {[%emt 0:00:00]} Ka8 {[%emt 0:00:00]} 43.
Qxe5 {[%emt 0:00:00]} Kb7 {[%emt 0:00:00]} 44. Kh2 {[%emt 0:01:46]} Qa2 {
[%emt 0:00:00]} 45. h4 {[%emt 0:00:27]} Kc6 {[%emt 0:00:00]} 46. h5 {[%emt 0:
00:26]} Kd7 {[%emt 0:00:00]} 47. h6 {[%emt 0:00:39]} Qd2 {[%emt 0:00:00]} 48.
Qg7+ {[%emt 0:00:00]} 1-0

[Event "28th North American Open"]
[Site "Las Vegas"]
[Date "2018.12.30"]
[Round "9"]
[White "Li, Ruifeng"]
[Black "Bai, Jinshi"]
[Result "0-1"]
[ECO "C43"]
[WhiteElo "2559"]
[BlackElo "2568"]
[PlyCount "42"]
[EventDate "2018.12.??"]
[EventType "swiss"]
[EventRounds "9"]
[EventCountry "USA"]
[TimeControl "6600+10"]
[WhiteClock "0:12:55"]
[BlackClock "0:15:28"]

1. e4 {[%emt 0:19:40]} e5 {[%emt 0:20:04]} 2. Bc4 {[%emt 0:00:06]} Nf6 {
[%emt 0:00:03]} 3. d4 {[%emt 0:00:06]} exd4 {[%emt 0:02:20]} 4. Nf3 {[%emt 0:
00:00]} Bb4+ {[%emt 0:12:06]} 5. c3 {[%emt 0:00:00]} dxc3 {[%emt 0:00:00]} 6.
O-O {[%emt 0:07:46]} O-O {[%emt 0:10:53]} 7. e5 {[%emt 0:00:54]} d5 {[%emt 0:
14:53]} 8. exf6 {[%emt 0:00:00]} dxc4 {[%emt 0:00:00]} 9. fxg7 {[%emt 0:00:03]}
Re8 {[%emt 0:02:17]} 10. Qa4 {[%emt 0:13:44]} Nc6 {[%emt 0:06:29]} 11. bxc3 {
[%emt 0:10:01]} Bg4 {[%emt 0:01:08]} 12. cxb4 {[%emt 0:06:33]} Bxf3 {[%emt 0:
01:34]} 13. gxf3 {[%emt 0:00:00]} Nd4 {[%emt 0:14:24]} 14. Qd1 {[%emt 0:09:23]}
Qf6 {[%emt 0:04:34]} 15. Kh1 {[%emt 0:09:59]} Re2 {[%emt 0:04:44]} 16. h3 {
[%emt 0:17:19]} Qxf3+ {[%emt 0:01:56]} 17. Kg1 {[%emt 0:00:00]} Rd8 {[%emt 0:
00:39]} 18. Be3 {[%emt 0:04:20]} Qxh3 {[%emt 0:00:35]} 19. Bxd4 {[%emt 0:00:19]
} Qg4+ {[%emt 0:00:00]} 20. Kh2 {[%emt 0:00:24]} Rxd4 {[%emt 0:00:00]} 21. Nc3
{[%emt 0:00:00]} Qh5+ {[%emt 0:00:00]} 0-1

[Event "28th North American Open"]
[Site "Las Vegas"]
[Date "2018.12.30"]
[Round "9"]
[White "Zierk, Steven"]
[Black "Li, Zhaozhi"]
[Result "0-1"]
[ECO "B90"]
[WhiteElo "2510"]
[BlackElo "2399"]
[PlyCount "60"]
[EventDate "2018.12.??"]
[EventType "swiss"]
[EventRounds "9"]
[EventCountry "USA"]
[TimeControl "6600+10"]
[WhiteClock "0:07:34"]
[BlackClock "0:00:53"]

1. e4 {[%emt 0:19:40]} c5 2. Nf3 {[%emt 0:00:03]} d6 {[%emt 0:20:20]} 3. d4 {
[%emt 0:03:14]} cxd4 {[%emt 0:00:00]} 4. Nxd4 {[%emt 0:00:00]} Nf6 {[%emt 0:00:
00]} 5. Nc3 {[%emt 0:00:00]} a6 {[%emt 0:00:00]} 6. h3 {[%emt 0:00:00]} g6 {
[%emt 0:00:00]} 7. Be3 {[%emt 0:01:56]} Bg7 {[%emt 0:00:00]} 8. Qd2 {[%emt 0:
02:37]} b5 {[%emt 0:02:27]} 9. Bh6 {[%emt 0:05:51]} Bxh6 {[%emt 0:08:06]} 10.
Qxh6 {[%emt 0:00:00]} e5 {[%emt 0:07:18]} 11. Nb3 {[%emt 0:12:39]} b4 {[%emt 0:
00:00]} 12. Nd5 {[%emt 0:00:16]} Nxd5 {[%emt 0:02:40]} 13. exd5 {[%emt 0:00:00]
} Bb7 {[%emt 0:11:36]} 14. Be2 {[%emt 0:10:59]} Nd7 {[%emt 0:05:06]} 15. O-O {
[%emt 0:03:00]} Qb6 {[%emt 0:07:26]} 16. Rfd1 {[%emt 0:06:51]} Ke7 {[%emt 0:09:
16]} 17. Qh4+ {[%emt 0:07:38]} Nf6 {[%emt 0:09:19]} 18. Nd2 {[%emt 0:00:39]}
Bxd5 {[%emt 0:01:48]} 19. Bf3 {[%emt 0:06:31]} Bxf3 {[%emt 0:06:40]} 20. Nc4 {
[%emt 0:02:48]} g5 {[%emt 0:08:12]} 21. Qh6 {[%emt 0:01:01]} Qc5 {[%emt 0:00:
46]} 22. Nxd6 {[%emt 0:13:40]} Rhg8 {[%emt 0:06:05]} 23. Nf5+ {[%emt 0:03:19]}
Ke6 {[%emt 0:00:45]} 24. Nd4+ {[%emt 0:00:46]} exd4 {[%emt 0:01:18]} 25. Re1+ {
[%emt 0:00:00]} Kf5 {[%emt 0:00:26]} 26. g4+ {[%emt 0:00:00]} Nxg4 {[%emt 0:02:
07]} 27. hxg4+ {[%emt 0:00:00]} Bxg4 {[%emt 0:00:14]} 28. f3 {[%emt 0:03:53]}
d3+ {[%emt 0:01:40]} 29. Kf1 {[%emt 0:00:00]} Bxf3 {[%emt 0:00:35]} 30. Qh3+ {
[%emt 0:00:05]} Bg4 {[%emt 0:00:07]} 0-1

[Event "28th North American Open"]
[Site "Las Vegas"]
[Date "2018.12.30"]
[Round "9"]
[White "Balakrishnan, Praveen"]
[Black "Hong, Andrew"]
[Result "1/2-1/2"]
[ECO "B94"]
[WhiteElo "2418"]
[BlackElo "2390"]
[PlyCount "49"]
[EventDate "2018.12.??"]
[EventType "swiss"]
[EventRounds "9"]
[EventCountry "USA"]
[TimeControl "6600+10"]
[WhiteClock "0:36:21"]
[BlackClock "1:00:42"]

1. e4 {[%emt 0:19:40]} c5 {[%emt 0:20:04]} 2. Nf3 {[%emt 0:00:00]} d6 {[%emt 0:
00:00]} 3. d4 {[%emt 0:00:00]} cxd4 {[%emt 0:00:00]} 4. Nxd4 {[%emt 0:00:00]}
Nf6 {[%emt 0:00:00]} 5. Nc3 {[%emt 0:00:00]} a6 {[%emt 0:00:00]} 6. Bg5 {
[%emt 0:00:00]} Nbd7 {[%emt 0:00:00]} 7. Qe2 {[%emt 0:00:00]} h6 {[%emt 0:00:
03]} 8. Bh4 {[%emt 0:00:00]} g6 {[%emt 0:00:00]} 9. f4 {[%emt 0:00:00]} e5 {
[%emt 0:00:00]} 10. fxe5 {[%emt 0:00:00]} dxe5 {[%emt 0:00:00]} 11. O-O-O {
[%emt 0:00:00]} Qc7 {[%emt 0:00:00]} 12. Nb3 {[%emt 0:00:00]} b5 {[%emt 0:00:
00]} 13. Nd5 {[%emt 0:00:00]} Nxd5 {[%emt 0:00:36]} 14. exd5 {[%emt 0:00:00]}
Bd6 {[%emt 0:00:17]} 15. Qd2 {[%emt 0:00:00]} f5 {[%emt 0:01:35]} 16. g4 {
[%emt 0:00:00]} f4 {[%emt 0:00:27]} 17. Bd3 {[%emt 0:00:00]} Kf7 {[%emt 0:00:
21]} 18. Qg2 {[%emt 0:09:05]} g5 {[%emt 0:00:09]} 19. Qe4 {[%emt 0:33:18]} gxh4
{[%emt 0:21:01]} 20. Qg6+ {[%emt 0:03:16]} Kf8 {[%emt 0:00:15]} 21. Bf5 {
[%emt 0:01:16]} e4 {[%emt 0:06:23]} 22. Bxd7 {[%emt 0:12:03]} Bxd7 {[%emt 0:02:
47]} 23. Qf6+ {[%emt 0:00:00]} Kg8 {[%emt 0:00:00]} 24. Qg6+ {[%emt 0:00:00]}
Kf8 {[%emt 0:00:00]} 25. Qf6+ {[%emt 0:00:00]} 1/2-1/2